bitfinex/quotes_ETHUSD_20250605
["timestamp","ask_amount","ask_price","bid_price","bid_amount"]
[1749147585718,7.66402511,2572.9,2572.8,3.88681592]
[1749147585890,1.33419482,2572.9,2572.8,3.88681592]
[1749147586095,8.60619363,2572.9,2572.8,3.88681592]
[1749147586418,1.33428881,2572.9,2572.8,20.43681592]
[1749147586587,7.292,2572.9,2572.8,20.43681592]
[1749147586791,0.02,2572.9,2572.8,20.43681592]
[1749147587023,7.6547629,2572.9,2572.8,20.43681592]
[1749147587236,7.65476374,2572.9,2572.8,20.43681592]
[1749147587435,7.65476288,2572.9,2572.8,20.43681592]
[1749147587593,8.01753247,2572.9,2572.8,20.43681592]
[1749147587789,7.65476615,2572.9,2572.8,20.43681592]
[1749147588095,7.65476615,2572.9,2572.8,19.88681592]
[1749147588290,8.23523087,2572.9,2572.8,19.88681592]
[1749147588531,8.02601993,2572.9,2572.8,19.88681592]
[1749147588739,8.60651454,2572.9,2572.8,19.88681592]
[1749147588897,8.24371028,2572.9,2572.8,19.88681592]
[1749147589521,8.60651506,2572.9,2572.8,19.88681592]
[1749147589719,9.58058761,2572.9,2572.6,3.88703983]
[1749147589927,0.73404425,2572.8,2572.7,3.88696699]
[1749147590231,0.73421864,2572.8,2572.7,3.88696699]
[1749147590401,0.73421802,2572.8,2572.7,3.88696699]
[1749147590608,0.37122347,2572.8,2572.7,3.88696699]
[1749147591317,1.09721933,2572.8,2572.7,3.88696699]
[1749147591637,0.37122347,2572.8,2572.7,3.88696699]
[1749147591792,0.73404477,2572.8,2572.7,3.88696699]
[1749147591996,0.37122347,2572.8,2572.7,3.88696699]
[1749147592892,0.73405462,2572.8,2572.7,3.88696699]
[1749147593092,1.09688371,2572.8,2572.7,3.88696699]
[1749147593536,1.09724787,2572.8,2572.7,3.88696699]
[1749147593721,7.63822347,2572.8,2572.7,3.88696699]
[1749147594612,0.60048681,2572.9,2572.8,3.88681592]
[1749147594820,8.23046889,2572.9,2572.8,3.88681592]
[1749147594999,0.96346889,2572.9,2572.8,3.88681592]
[1749147595201,7.86648681,2572.9,2572.8,3.88681592]
[1749147595836,7.86648681,2572.9,2571.8,4.27845493]
[1749147596034,7.86648681,2572.9,2572.8,3.88681592]
[1749147596238,9.1388061,2572.9,2572.3,16.0]
[1749147596538,1.09767764,2572.8,2572.7,3.88687327]
[1749147596918,0.7262562,2572.8,2572.7,3.88687327]
[1749147597239,8.76740813,2572.9,2572.7,3.88687327]
[1749147597543,8.76740813,2572.9,2572.8,3.88681592]
[1749147597701,9.5021468,2572.9,2572.8,3.88681592]
[1749147598039,8.76740813,2572.9,2572.8,3.88681592]
[1749147598205,9.13888144,2572.9,2572.8,3.88681592]
[1749147598405,9.1306616,2572.9,2572.8,3.88681592]
[1749147598619,9.86538894,2572.9,2572.8,3.88681592]
[1749147598797,9.4941389,2572.9,2572.8,3.88681592]
[1749147599002,8.23496012,2572.9,2572.8,3.88681592]
[1749147599335,8.22684746,2572.9,2572.8,3.88681592]
[1749147599538,8.59831994,2572.9,2572.8,3.88681592]
[1749147599702,7.86348681,2572.9,2572.8,3.88681592]
[1749147600034,1.69868259,2572.9,2572.8,3.88681592]
[1749147600237,1.32720928,2572.9,2572.8,3.88681592]
[1749147600539,0.96382579,2572.9,2572.8,4.43681592]
[1749147600741,8.22582579,2572.9,2572.8,4.43681592]
[1749147600925,7.86248681,2572.9,2572.8,4.43681592]
[1749147601742,0.96420179,2572.9,2572.8,20.43681592]
[1749147602037,0.96420179,2572.9,2572.8,23.92740949]
[1749147602341,7.86148681,2572.9,2572.8,23.92740949]
[1749147602848,7.86148681,2572.9,2572.8,20.43681592]
[1749147603443,0.60048681,2572.9,2572.8,20.43681592]
[1749147603844,7.86048681,2572.9,2572.8,20.43681592]
[1749147604233,0.60048681,2572.9,2572.8,20.43681592]
[1749147604435,0.37208483,2573.6,2573.4,3.88590969]
[1749147604635,0.37208483,2573.6,2573.5,3.88575869]
[1749147604821,2.57308483,2573.7,2573.6,3.8856077]
[1749147605211,0.73078985,2573.8,2573.7,4.43545673]
[1749147605462,7.61770502,2573.8,2573.7,31.51608989]
[1749147605611,7.61770502,2573.8,2573.7,30.63881804]
[1749147605816,7.61770502,2573.8,2573.7,20.83386434]
[1749147606010,7.61770502,2573.8,2573.6,3.88555679]
[1749147606242,30.0,2573.7,2573.1,16.55]
[1749147606466,40.0,2573.5,2573.3,16.0]
[1749147606633,30.0,2573.5,2573.4,19.88590969]
[1749147606829,0.7931,2573.6,2573.5,4.43575869]
[1749147607182,0.35870502,2573.8,2573.7,3.88545673]
[1749147607517,7.61570502,2573.8,2573.7,3.88545673]
[1749147608511,7.61470502,2573.8,2573.7,3.88545673]
[1749147609069,7.61370502,2573.8,2573.7,3.88545673]
[1749147609377,7.61370502,2573.8,2573.2,0.38721114]
[1749147609578,7.61370502,2573.8,2573.5,3.88567665]
[1749147609880,0.35870502,2573.8,2573.7,20.43545673]
[1749147610034,0.35870502,2573.8,2573.7,31.06541043]
[1749147610214,0.02,2573.9,2573.8,20.43530577]
[1749147610419,0.02,2573.9,2573.8,24.3189353]
[1749147611514,7.274,2573.9,2573.8,24.3189353]
[1749147611827,0.02,2573.9,2573.8,24.3189353]
[1749147612038,7.272,2573.9,2573.8,24.3189353]
[1749147613032,0.02,2573.9,2573.8,24.3189353]
[1749147613433,7.271,2573.9,2573.8,24.3189353]
[1749147613755,0.02,2573.9,2573.8,24.3189353]
[1749147614457,7.27,2573.9,2573.8,24.3189353]
[1749147614817,0.95,2574.4,2574.3,21.24095114]
[1749147615022,0.95,2574.4,2574.3,33.5584677]
[1749147615557,8.199,2574.4,2574.3,33.5584677]
[1749147615757,8.199,2574.4,2574.3,20.43455114]
[1749147615942,8.199,2574.4,2573.9,3.88515482]
[1749147615943,8.199,2574.4,2573.8,3.88362953]
[1749147616141,8.199,2574.4,2574.3,3.88455114]
[1749147616519,30.0,2574.3,2574.0,3.8849303]
[1749147616875,3.90091672,2574.3,2574.2,3.88470204]
[1749147617026,38.199,2574.4,2574.3,3.88455114]
[1749147617222,38.198,2574.4,2574.3,3.88455114]
[1749147617427,30.0,2574.3,2574.2,3.88465101]
[1749147617673,30.0,2574.3,2574.1,3.88477107]
[1749147617819,30.0,2574.0,2573.2,4.27270013]
[1749147618023,10.8124,2574.2,2573.1,0.8252]
[1749147618024,7.247,2573.9,2573.7,3.88535525]
[1749147618270,33.0124,2573.8,2573.3,0.32440158]
[1749147618568,30.0,2573.6,2573.3,0.32440158]
[1749147618787,0.7861,2573.4,2573.3,0.32440158]
[1749147618922,38.0321,2573.4,2573.3,0.32440158]
[1749147619382,41.91800969,2573.4,2573.3,0.32440158]
[1749147619756,38.0321,2573.4,2573.3,0.32440158]
[1749147619926,44.2321,2573.4,2573.3,0.32440158]
[1749147620123,36.9861,2573.4,2573.3,0.32440158]
[1749147620376,44.2311,2573.4,2573.3,0.32440158]
[1749147620678,48.11700969,2573.4,2573.3,0.32440158]
[1749147621032,48.11700969,2573.4,2572.1,0.02]
[1749147621033,0.7543,2572.8,2572.1,0.02]
[1749147621248,7.246,2572.7,2572.1,0.4115817]
[1749147621452,7.246,2572.7,2572.4,3.88741019]
[1749147621642,7.246,2572.7,2572.2,3.88772257]
[1749147621941,0.7543,2572.8,2572.7,3.88696699]
[1749147622136,7.9993,2572.8,2572.7,3.88696699]
[1749147622344,40.0,2572.6,2572.1,3.90782652]
[1749147622560,30.0,2572.7,2572.3,3.88749218]
[1749147622769,32.2,2572.7,2572.6,3.88711809]
[1749147622980,32.2,2572.7,2572.5,0.55]
[1749147622981,7.244,2572.7,2572.5,0.55]
[1749147623178,2.9879,2573.1,2572.5,0.55]
[1749147623352,7.244,2573.0,2572.9,3.88666485]
[1749147623559,7.244,2573.0,2572.8,3.88675333]
[1749147623798,40.0,2572.9,2572.7,3.886941]
[1749147623993,30.0,2572.9,2572.3,3.8875369]
[1749147624292,40.0,2572.7,2572.5,3.88719818]
[1749147624493,30.0,2572.7,2572.5,3.88719818]
[1749147624695,30.0,2572.7,2572.5,3.88716986]
[1749147625597,8.0319,2572.6,2572.5,3.88716986]
[1749147625800,9.22518167,2572.6,2572.4,3.88735322]
[1749147625996,8.0319,2572.6,2572.5,3.88726919]
[1749147626202,0.7879,2572.6,2572.5,3.88726919]
[1749147626401,0.7879,2572.6,2572.2,3.88772257]
[1749147626402,0.7879,2573.0,2572.8,3.88675006]
[1749147626579,30.0,2572.8,2572.7,3.88690575]
[1749147626796,30.0,2572.7,2572.6,3.88707638]
[1749147626995,30.0,2572.7,2572.1,0.02]
[1749147627305,30.0,2572.7,2572.3,16.0]
[1749147627617,0.7879,2572.6,2572.4,3.88741596]
[1749147627816,7.243,2572.5,2572.4,3.88741596]
[1749147628403,7.243,2572.5,2572.1,0.02]
[1749147628615,7.243,2572.5,2572.2,3.88758109]
[1749147628926,7.243,2572.5,2572.2,19.88764275]
[1749147629124,7.243,2572.5,2572.1,3.90783836]
[1749147629125,30.0,2572.3,2572.1,3.90783836]
[1749147629289,30.0,2572.3,2572.2,3.88772257]
[1749147629620,0.80309,2572.4,2572.3,3.88757143]
[1749147629794,7.241,2572.4,2572.3,3.88757143]
[1749147630322,2.9889,2572.6,2572.5,3.88726919]
[1749147630480,7.31414018,2572.6,2572.5,3.88726919]
[1749147630682,13.76724018,2572.6,2572.5,3.88726919]
[1749147630883,4.32524018,2572.6,2572.5,20.43726919]
[1749147631119,7.56624018,2572.6,2572.5,20.43726919]
[1749147631319,37.56624018,2572.6,2572.1,0.02]
[1749147631539,0.32524018,2572.5,2572.4,3.88733]
[1749147631691,0.32524018,2572.5,2572.4,4.43733]
[1749147631885,7.56624018,2572.5,2572.4,4.43733]
[1749147632299,0.32524018,2572.5,2572.4,4.43733]
[1749147632500,7.56524018,2572.5,2572.4,4.43733]
[1749147634126,0.32524018,2572.5,2572.4,4.43733]
[1749147634285,7.56424018,2572.5,2572.4,4.43733]
[1749147635489,0.32524018,2572.5,2572.4,21.26981756]
[1749147635824,7.56324018,2572.5,2572.4,21.26981756]
[1749147635992,7.56324018,2572.5,2572.4,19.88733]
[1749147636192,7.56324018,2572.5,2572.4,16.0]
[1749147636392,8.37944018,2572.5,2572.4,3.8874203]
[1749147636629,8.37944018,2572.5,2572.1,0.02]
[1749147636947,8.37944018,2572.5,2572.3,3.88743601]
[1749147637146,0.83794402,2572.4,2572.2,3.88758835]
[1749147637451,1.14144018,2572.5,2572.3,3.88757143]
[1749147637619,7.237,2572.4,2572.3,3.88748949]
[1749147638203,7.237,2572.4,2572.2,3.88764461]
[1749147638645,7.237,2572.4,2572.2,3.88764582]
[1749147638851,7.237,2572.4,2572.1,0.02]
[1749147638852,36.07457653,2572.3,2572.1,0.02]
[1749147639020,30.0,2572.2,2572.1,0.02]
[1749147639463,2.187,2572.3,2572.1,3.90787372]
[1749147639757,3.0032,2572.5,2572.3,3.88757143]
[1749147639909,7.236,2572.4,2572.3,3.88757143]
[1749147640310,7.236,2572.4,2572.2,3.88765452]
[1749147640620,3.30352,2572.5,2572.3,3.8875032]
[1749147640844,11.235,2572.4,2572.3,3.8875032]
[1749147641040,11.235,2572.4,2572.2,3.88758987]
[1749147641409,11.235,2572.4,2572.3,3.88757143]
[1749147642566,11.235,2572.4,2572.1,3.90783193]
[1749147642567,11.235,2572.4,2572.1,3.90780028]
[1749147642874,12.688852,2572.4,2572.1,0.02]
[1749147643050,30.0,2572.3,2572.1,3.90785966]
[1749147643368,30.0,2572.3,2572.1,0.02]
[1749147644623,30.0,2572.3,2572.1,3.90784506]
[1749147644828,30.0,2572.2,2572.1,3.90784506]
[1749147645061,4.0,2572.2,2572.1,3.90784506]
[1749147645237,14.0,2572.2,2572.1,3.90784506]
[1749147645471,4.0,2572.2,2572.1,3.90784506]
[1749147645638,4.0,2572.2,2572.1,31.08741171]
[1749147645868,0.7568,2573.2,2573.1,3.88636275]
[1749147646026,7.232,2573.2,2573.1,3.88625326]
[1749147646451,7.232,2573.2,2573.0,3.88648151]
[1749147647055,7.232,2573.2,2573.1,3.88636275]
[1749147647267,7.232,2573.2,2572.6,4.43709448]
[1749147647268,33.88642999,2573.1,2572.6,3.88703115]
[1749147647453,18.52306665,2573.2,2572.2,3.88772257]
[1749147647454,30.0,2572.9,2572.8,3.88681592]
[1749147647634,1.31564448,2572.9,2572.8,3.88681592]
[1749147647969,7.231,2572.9,2572.8,3.88681592]
[1749147648164,0.36335897,2572.9,2572.8,3.88681592]
[1749147648367,7.23,2572.9,2572.8,0.77737568]
[1749147648570,7.23,2572.9,2572.8,20.6641916]
[1749147648726,0.3633257,2573.2,2573.1,3.88636275]
[1749147648924,7.95664714,2573.2,2573.1,3.88636275]
[1749147649126,7.95665225,2573.2,2573.1,3.88636275]
[1749147649333,8.32754972,2573.2,2573.1,3.88636275]
[1749147649539,17.59332732,2573.2,2572.6,0.55]
[1749147649740,30.3709003,2573.1,2572.6,19.88709441]
[1749147649954,39.28155511,2573.2,2573.1,3.88636275]
[1749147650154,39.65355445,2573.2,2573.1,3.88636275]
[1749147650380,7.96433293,2573.2,2573.1,3.88636275]
[1749147650680,7.59232768,2573.2,2573.1,3.88636275]
[1749147650845,0.36332768,2573.2,2573.1,3.88636275]
[1749147651045,7.59132768,2573.2,2573.1,3.88636275]
[1749147651241,2.188,2573.4,2573.3,3.8860607]
[1749147651441,30.0,2573.5,2573.4,3.88588362]
[1749147651866,2.187,2573.9,2573.8,3.88530577]
[1749147652242,10.51187286,2573.9,2573.8,3.88530577]
[1749147652442,2.55008455,2573.9,2573.8,3.88530577]
[1749147652776,2.55008455,2573.9,2573.7,3.88543045]
[1749147652777,30.0,2573.8,2573.7,3.88545673]
[1749147653015,0.36309621,2573.8,2573.7,3.88545673]
[1749147653183,0.73453898,2573.8,2573.7,3.88545673]
[1749147653477,32.59111729,2573.9,2573.8,3.88530577]
[1749147653679,32.59111729,2573.9,2573.6,3.88560042]
[1749147653680,40.91573504,2573.9,2573.6,3.88550901]
[1749147653863,4.26400312,2573.8,2573.7,3.88545673]
[1749147654064,0.36242714,2573.8,2573.7,3.88545673]
[1749147654479,0.36242771,2573.8,2573.7,3.88545673]
[1749147654781,30.0,2573.8,2573.7,3.88545673]
[1749147654984,9.81811729,2573.9,2573.7,3.88545673]
[1749147654985,9.81811729,2573.9,2573.8,3.88530577]
[1749147655281,32.9433,2574.1,2573.6,3.8856077]
[1749147655443,7.225,2573.9,2573.8,3.88530577]
[1749147655849,7.58728831,2573.9,2573.8,3.88530577]
[1749147656051,32.9433,2574.1,2574.0,3.88500388]
[1749147656403,30.0,2574.0,2573.9,3.88508255]
[1749147656545,0.36229272,2574.0,2573.8,3.88525577]
[1749147656784,30.0,2574.0,2573.0,16.8261]
[1749147656982,30.36230199,2573.9,2573.8,3.88527977]
[1749147657316,7.58528166,2573.9,2573.7,3.88539429]
[1749147657478,7.223,2573.9,2573.7,3.88539429]
[1749147657677,7.223,2573.9,2573.7,3.8853714]
[1749147657879,0.90283326,2573.8,2573.7,3.88532111]
[1749147658094,32.187,2574.0,2573.9,3.88514956]
[1749147658315,9.409,2574.0,2573.9,3.88514956]
[1749147658701,30.0,2574.0,2573.9,3.88514956]
[1749147658889,9.409,2574.0,2573.9,3.88514956]
[1749147659083,0.7563,2574.1,2574.0,3.88500388]
[1749147659278,40.52717529,2574.1,2574.0,3.88500388]
[1749147659528,30.0,2574.0,2573.9,3.88514036]
[1749147659734,0.36187529,2574.0,2573.9,3.88514036]
[1749147659932,30.0,2574.0,2573.9,3.88514036]
[1749147660086,3.90091672,2574.0,2573.9,3.88514036]
[1749147660417,30.0,2574.0,2573.9,3.88514036]
[1749147660819,30.36180029,2574.0,2573.9,3.88514036]
[1749147661120,0.36180029,2574.0,2573.9,3.88514036]
[1749147661316,7.22,2574.0,2573.9,3.88514036]
[1749147662018,7.22,2574.0,2573.3,16.0]
[1749147662220,1.01633,2573.9,2573.7,3.8853857]
[1749147662598,3.88540237,2573.8,2573.0,0.8261]
[1749147662785,3.88540237,2573.8,2572.9,3.88656571]
[1749147662786,10.95668572,2573.7,2572.8,3.88672468]
[1749147662985,30.0,2573.3,2572.6,3.88711809]
[1749147663208,43.30591672,2573.2,2573.1,3.88636275]
[1749147663383,39.405,2573.2,2573.1,3.88636275]
[1749147663585,30.0,2573.1,2572.9,3.88651847]
[1749147663887,30.0,2573.1,2573.0,3.88651379]
[1749147664394,32.174,2573.3,2573.2,3.88619914]
[1749147664595,3.88556104,2573.7,2573.2,3.88619914]
[1749147664596,3.02951775,2573.5,2573.2,3.88619914]
[1749147664801,32.174,2573.5,2573.4,3.88590969]
[1749147665002,9.75262486,2573.5,2573.4,3.88590969]
[1749147665201,9.391,2573.5,2573.4,3.88590969]
[1749147665400,0.7642,2573.8,2573.5,3.88571086]
[1749147665401,30.0,2573.6,2573.5,3.88571086]
[1749147665622,7.217,2573.6,2573.5,3.88571086]
[1749147666621,12.11719743,2573.6,2573.1,3.88629932]
[1749147666821,30.0,2573.5,2573.2,3.8861438]
[1749147667223,30.0,2573.5,2573.1,3.88628295]
[1749147667426,30.0,2573.4,2573.2,3.88614034]
[1749147667722,30.0,2573.4,2573.1,3.88634634]
[1749147667922,30.0,2573.4,2573.3,3.8860607]
[1749147668133,30.0,2573.3,2573.2,3.88612867]
[1749147668285,30.0,2573.4,2573.0,3.88648483]
[1749147668488,30.0,2573.5,2573.2,3.8861033]
[1749147668688,40.0,2573.3,2573.1,3.88629305]
[1749147668883,3.823152,2573.4,2573.1,3.88629305]
[1749147668884,7.215,2573.2,2573.1,3.88629305]
[1749147670601,7.215,2573.2,2572.9,3.88661091]
[1749147671128,8.0481,2573.2,2573.0,3.8864681]
[1749147671308,8.85291,2573.2,2573.0,3.8864681]
[1749147671624,8.85291,2573.2,2573.1,3.88636275]
[1749147671790,1.09458714,2573.4,2573.2,3.88621172]
[1749147671993,7.213,2573.3,2573.2,3.88621172]
[1749147672192,7.213,2573.3,2573.1,3.88629404]
[1749147672394,30.0,2573.2,2572.6,19.88711809]
[1749147672728,32.174,2573.5,2573.1,3.88636275]
[1749147672927,7.58412928,2573.4,2573.2,3.8860943]
[1749147673128,7.58412928,2573.4,2572.6,7.65055225]
[1749147673129,30.0,2573.4,2572.9,3.88661958]
[1749147673428,7.212,2573.3,2573.2,3.88621172]
[1749147673793,8.1506,2573.3,2573.0,3.88647663]
[1749147673992,30.0,2573.2,2573.1,3.88636275]
[1749147674194,30.0,2573.2,2573.0,3.88648344]
[1749147674195,0.36224778,2573.2,2573.0,3.88643223]
[1749147674529,3.1126,2573.3,2573.1,3.8863525]
[1749147674733,3.1126,2573.3,2572.4,16.8087]
[1749147674734,7.211,2573.1,2572.4,22.82062439]
[1749147674907,40.0,2572.9,2572.4,0.8087]
[1749147675112,30.0,2572.9,2572.8,3.88681592]
[1749147675430,0.73393697,2572.9,2572.5,3.88714981]
[1749147675632,10.37158242,2572.9,2572.7,3.88693981]
[1749147675830,10.37158242,2572.9,2572.8,3.88681592]
[1749147675995,10.11938534,2572.9,2572.4,3.88731696]
[1749147676196,9.75658242,2572.9,2572.4,3.88731696]
[1749147676392,9.75658242,2572.9,2572.6,3.88699886]
[1749147676393,0.36281609,2572.8,2572.6,3.88699886]
[1749147676638,1.09372985,2572.8,2572.6,3.88699886]
[1749147676797,0.36281035,2572.7,2572.6,3.88699886]
[1749147677002,10.36281443,2572.7,2572.6,3.88699886]
[1749147677224,40.36281535,2572.7,2572.6,3.88711809]
[1749147677429,3.90091672,2572.7,2572.6,3.88711809]
[1749147677625,40.3630703,2572.7,2572.5,3.88718998]
[1749147677834,0.72615353,2572.6,2572.1,0.02]
[1749147678138,0.72615353,2572.6,2572.2,3.88768356]
[1749147678139,7.57308897,2572.5,2572.2,3.88768356]
[1749147678438,8.42949214,2572.5,2572.3,3.88748358]
[1749147678611,0.7562,2572.4,2572.3,3.88748358]
[1749147678810,1.11930549,2572.4,2572.3,3.88748358]
[1749147678998,8.42949214,2572.5,2572.3,3.88748358]
[1749147679202,7.21,2572.5,2572.4,3.8874203]
[1749147679500,40.0,2572.4,2572.1,0.02]
[1749147679701,1.41054462,2572.7,2572.3,3.88757143]
[1749147679702,0.8209,2572.7,2572.3,3.88757143]
[1749147679933,30.0,2572.5,2572.4,3.8874203]
[1749147680232,10.10811156,2572.5,2572.4,3.8874203]
[1749147680395,9.383,2572.5,2572.4,3.8874203]
[1749147680594,9.74556882,2572.5,2572.1,0.02]
[1749147680796,9.74544352,2572.5,2572.2,3.88766088]
[1749147681033,1.01080123,2572.4,2572.2,3.88766088]
[1749147681239,1.01080123,2572.4,2572.3,3.88757143]
[1749147681634,2.175,2572.5,2572.4,3.8874203]
[1749147681835,1.19234249,2572.7,2572.5,3.88726919]
[1749147682036,2.175,2572.7,2572.6,3.88711809]
[1749147682235,9.382,2572.7,2572.6,3.88711809]
[1749147682638,10.3202,2572.7,2572.3,3.88746842]
[1749147682841,10.3202,2572.7,2572.2,3.88772257]
[1749147683004,10.3202,2572.7,2572.1,0.02]
[1749147683339,10.3202,2572.7,2572.5,3.88720405]
[1749147683340,30.0,2572.6,2572.5,3.88720405]
[1749147683536,30.0,2572.6,2572.5,3.88726919]
[1749147683537,7.56841732,2572.6,2572.5,3.88726919]
[1749147683834,7.206,2572.6,2572.5,3.88726919]
[1749147684537,7.206,2572.6,2572.1,0.02]
[1749147684739,30.8302,2572.5,2572.4,3.8874203]
[1749147684937,0.8302,2572.5,2572.4,3.8874203]
[1749147685447,30.0,2572.4,2572.3,3.88748361]
[1749147685739,30.0,2572.4,2572.1,0.02]
[1749147685740,30.0,2572.3,2572.1,0.02]
[1749147685944,33.08302,2572.3,2572.2,3.88772257]
[1749147686130,40.28802,2572.3,2572.2,3.88772257]
[1749147686805,32.175,2572.4,2572.3,3.88757143]
[1749147687009,40.11330004,2572.4,2572.3,3.88757143]
[1749147687222,30.0,2572.4,2572.3,3.88757143]
[1749147687419,30.0,2572.7,2572.5,3.8871684]
[1749147687710,30.0,2572.5,2572.4,3.88734097]
[1749147688110,32.175,2572.6,2572.5,3.88713228]
[1749147688346,39.7502477,2572.6,2572.5,3.88713228]
[1749147688648,40.11239967,2572.6,2572.5,3.88713228]
[1749147688845,9.7502477,2572.6,2572.5,3.88713228]
[1749147689140,9.379,2572.6,2572.5,3.88713228]
[1749147689346,2.175,2572.6,2572.5,3.88713228]
[1749147689510,0.3712477,2573.0,2572.9,3.88666485]
[1749147689714,2.63808787,2573.3,2572.6,19.88711809]
[1749147689715,32.175,2573.3,2573.2,3.88621172]
[1749147689909,40.11131612,2573.3,2573.2,3.88621172]
[1749147690756,39.7482477,2573.3,2573.2,3.88621172]
[1749147691220,40.11075704,2573.3,2573.2,3.88621172]
[1749147691420,39.7482477,2573.3,2573.2,3.88621172]
[1749147691733,40.11075753,2573.3,2573.2,3.88621172]
[1749147691934,40.47326741,2573.3,2573.2,3.88621172]
[1749147692244,40.11076089,2573.3,2573.2,3.88621172]
[1749147692444,39.7482477,2573.3,2573.2,3.88621172]
[1749147692650,40.11076125,2573.3,2573.2,3.88621172]
[1749147692948,40.11076125,2573.3,2573.1,3.88634867]
[1749147692949,30.0,2573.2,2573.1,3.88636275]
[1749147693122,30.73389839,2573.2,2573.1,3.88636275]
[1749147693310,30.37164776,2573.2,2573.0,3.88648758]
[1749147693509,30.0,2573.2,2572.9,3.88666173]
[1749147693715,13.27791672,2573.3,2572.5,0.7555]
[1749147693716,4.26357296,2573.1,2573.0,3.88651379]
[1749147694013,30.0,2573.1,2573.0,3.88651379]
[1749147694248,30.0,2573.2,2573.0,3.88651379]
[1749147694468,30.0,2573.2,2573.0,3.88650016]
[1749147694672,30.0,2573.1,2573.0,3.88650016]
[1749147694968,0.36273898,2573.1,2573.0,3.88650016]
[1749147695144,0.36274148,2573.1,2573.0,3.88650016]
[1749147695339,10.36274148,2573.1,2573.0,3.88650016]
[1749147695763,0.73439231,2573.2,2573.0,3.88650016]
[1749147695964,10.0,2573.1,2573.0,3.88650016]
[1749147696166,2.54665389,2573.3,2573.2,3.88621172]
[1749147696478,2.53771641,2573.3,2573.2,3.88621172]
[1749147696772,0.7343703,2573.5,2573.4,3.88590969]
[1749147696773,0.73434277,2573.5,2573.4,3.88590969]
[1749147696975,7.55968807,2573.5,2573.4,3.88590969]
[1749147697376,7.197,2573.5,2573.4,3.88590969]
[1749147698155,7.196,2573.5,2573.4,3.88590969]
[1749147698554,7.55846904,2573.5,2573.4,3.88590969]
[1749147698844,7.196,2573.5,2573.4,3.88590969]
[1749147699151,0.37165389,2573.7,2573.6,3.8856077]
[1749147699488,2.161,2573.8,2573.7,3.88545673]
[1749147699656,9.71843735,2573.8,2573.7,3.88545673]
[1749147699841,9.356,2573.8,2573.7,3.88545673]
[1749147700443,0.7248582,2574.0,2573.6,4.6444077]
[1749147700797,0.7248582,2574.0,2573.1,4.43635458]
[1749147700798,17.194,2573.9,2573.5,3.88564762]
[1749147701080,32.161,2574.0,2573.8,3.88530577]
[1749147701279,7.193,2573.9,2573.8,3.88530577]
[1749147701588,0.37120605,2574.2,2574.1,3.88485295]
[1749147701890,2.52298102,2574.2,2574.1,3.88485295]
[1749147702088,9.353,2574.2,2574.1,3.88485295]
[1749147703400,30.0,2574.1,2573.8,3.88529572]
[1749147703555,4.26288753,2574.0,2573.8,3.88529572]
[1749147703888,30.0,2574.3,2574.0,3.88500388]
[1749147704079,7.91497056,2574.2,2574.1,3.88485295]
[1749147704274,17.191,2574.2,2574.1,3.88485295]
[1749147704593,0.8163,2574.1,2573.4,0.55]
[1749147704778,9.25739817,2574.2,2574.0,3.88500388]
[1749147705618,9.25739817,2574.2,2574.1,3.88485295]
[1749147706278,9.25739817,2574.2,2574.0,3.88493104]
[1749147706474,0.92573982,2574.1,2574.0,3.88493104]
[1749147706678,0.92573982,2574.1,2573.3,0.7981]
[1749147706900,43.88537901,2573.8,2573.3,3.88597783]
[1749147707203,9.349,2573.7,2573.5,3.88574745]
[1749147707410,10.36553,2573.7,2573.6,3.8856077]
[1749147707702,30.0,2573.8,2573.7,3.88534352]
[1749147707901,39.348,2573.8,2573.7,3.88534352]
[1749147708076,39.348,2573.8,2573.6,3.88552381]
[1749147708278,9.348,2573.8,2573.5,3.88567896]
[1749147708598,30.0,2573.9,2573.8,3.88523361]
[1749147708764,37.90918146,2573.9,2573.8,3.88523361]
[1749147709098,41.81009818,2573.9,2573.8,3.88523361]
[1749147709260,41.44850745,2573.9,2573.8,3.88523361]
[1749147709464,0.92573982,2574.1,2573.9,3.88505655]
[1749147709661,9.346,2574.0,2573.9,3.88505655]
[1749147710601,9.346,2574.0,2573.8,3.88523028]
[1749147710797,0.72340641,2574.1,2573.8,3.88523028]
[1749147711003,9.345,2574.0,2573.8,3.88523028]
[1749147711500,4.0,2573.9,2573.8,3.88523028]
[1749147711698,40.0,2573.8,2573.3,3.8860607]
[1749147711884,30.0,2573.8,2573.1,0.8159]
[1749147712085,30.0,2573.8,2573.5,3.88570318]
[1749147712262,13.90091672,2573.8,2573.7,3.88545673]
[1749147712471,40.0,2573.8,2573.7,3.88545673]
[1749147712664,4.0,2573.9,2573.8,3.88530577]
[1749147712876,11.183,2573.9,2573.8,3.88530577]
[1749147713489,11.183,2573.9,2573.2,3.8860642]
[1749147713689,1.3344,2573.8,2573.2,3.88621172]
[1749147713889,1.3344,2573.8,2573.7,3.88545673]
[1749147714090,4.0,2573.8,2573.7,3.88545673]
[1749147714289,11.182,2573.8,2573.7,3.88545673]
[1749147714676,7.182,2573.8,2573.7,3.88545673]
[1749147715702,7.182,2573.8,2573.6,3.88560654]
[1749147715877,0.72418652,2573.9,2573.2,3.88621172]
[1749147716082,2.52309326,2573.9,2573.8,3.88530577]
[1749147716282,10.06518652,2573.9,2573.8,3.88530577]
[1749147716594,9.341,2573.9,2573.8,3.88530577]
[1749147716981,9.70409475,2573.9,2573.8,3.88530577]
[1749147717165,9.341,2573.9,2573.8,3.88530577]
[1749147717602,13.70409481,2573.9,2573.7,3.8854036]
[1749147717805,0.72619906,2573.8,2573.7,3.8854036]
[1749147718107,7.179,2573.8,2573.7,3.8854036]
[1749147718694,4.0,2573.9,2573.6,3.88558066]
[1749147718874,7.178,2573.8,2573.7,3.88545673]
[1749147719392,7.90418658,2573.8,2573.7,3.88545673]
[1749147719707,7.90421723,2573.8,2573.7,3.88545673]
[1749147720001,11.90422609,2573.8,2573.7,3.88545673]
[1749147720204,11.178,2573.8,2573.7,3.88545673]
[1749147720627,11.91232957,2573.8,2573.7,3.88545673]
[1749147720806,11.54128689,2573.8,2573.7,3.88545673]
[1749147721009,14.11861914,2573.8,2573.6,3.88549609]
[1749147721177,6.21403296,2573.8,2573.7,3.88545673]
[1749147721381,14.48844893,2573.8,2573.7,3.88545673]